bitfinex/quotes_BTCUSD_20250814
["timestamp","ask_amount","ask_price","bid_price","bid_amount"]
[1755145737752,0.00513,123130.0,123120.0,0.12664]
[1755145740774,0.08785325,123130.0,123120.0,0.002]
[1755145740983,0.60713806,123130.0,123120.0,0.12664]
[1755145741312,0.57040484,123130.0,123120.0,0.12664]
[1755145741538,0.08785325,123130.0,123120.0,0.12664]
[1755145741753,0.08785325,123130.0,123120.0,0.002]
[1755145741959,0.08785325,123130.0,123120.0,0.12464]
[1755145742166,0.08985325,123130.0,123120.0,0.12464]
[1755145742371,0.09085325,123130.0,123120.0,0.12464]
[1755145743002,0.09085325,123130.0,123100.0,0.03845908]
[1755145743205,0.08768325,123130.0,123100.0,0.03845908]
[1755145743416,0.00317,123120.0,123100.0,0.03845908]
[1755145744089,0.00317,123120.0,123110.0,0.12464]
[1755145745087,0.00317,123120.0,123110.0,0.52152]
[1755145745675,0.00317,123120.0,123110.0,0.42036]
[1755145747197,0.001,123120.0,123110.0,0.19456]
[1755145747405,0.001,123120.0,123110.0,0.3192]
[1755145748019,0.001,123120.0,123110.0,0.00090966]
[1755145748225,0.001,123120.0,123110.0,0.12554966]
[1755145748650,0.001,123120.0,123110.0,0.00090966]
[1755145748902,0.001,123120.0,123110.0,0.12554966]
[1755145752323,0.001,123120.0,123110.0,0.12464]
[1755145752532,0.001,123120.0,123070.0,0.18081838]
[1755145752695,0.001,123120.0,123080.0,0.18272325]
[1755145753472,0.00305,123120.0,123080.0,0.18272325]
[1755145753724,0.00305,123120.0,123090.0,0.1246]
[1755145753918,0.00405,123120.0,123090.0,0.20732325]
[1755145754322,0.00305,123120.0,123090.0,0.20732325]
[1755145754916,0.00305,123120.0,123100.0,0.10116]
[1755145755115,0.00305,123120.0,123110.0,0.42036]
[1755145758136,0.00405,123120.0,123110.0,0.444681]
[1755145760779,0.001,123120.0,123110.0,0.024321]
[1755145760980,0.001,123120.0,123110.0,0.148921]
[1755145762743,0.001,123120.0,123110.0,0.024321]
[1755145762971,0.00405,123120.0,123110.0,0.148921]
[1755145763175,0.00618,123120.0,123110.0,0.148921]
[1755145763591,0.00618,123120.0,123110.0,0.1246]
[1755145763793,0.00618,123120.0,123100.0,0.17013602]
[1755145763794,0.00405,123120.0,123100.0,0.17013602]
[1755145763947,0.00405,123120.0,123110.0,0.12612]
[1755145764705,0.00405,123120.0,123110.0,0.27193502]
[1755145765123,0.00405,123120.0,123110.0,0.66885502]
[1755145766033,0.00405,123120.0,123110.0,0.56769502]
[1755145767893,0.00405,123120.0,123110.0,0.46653502]
[1755145768051,0.00405,123120.0,123110.0,0.46657502]
[1755145769303,0.00405,123120.0,123110.0,0.14581502]
[1755145769466,0.00405,123120.0,123110.0,0.27197502]
[1755145769874,0.00405,123120.0,123110.0,0.14581502]
[1755145770080,0.00405,123120.0,123110.0,0.27193502]
[1755145770658,0.001,123120.0,123110.0,0.27193502]
[1755145770863,0.001,123120.0,123110.0,0.12608]
[1755145771191,0.001,123120.0,123110.0,0.1504]
[1755145771964,0.001,123120.0,123110.0,0.10704325]
[1755145772174,0.001,123120.0,123110.0,0.42214805]
[1755145775141,0.001,123120.0,123110.0,0.81906805]
[1755145775786,0.001,123120.0,123110.0,0.63000325]
[1755145775983,0.00305,123140.0,123110.0,0.63000325]
[1755145776129,0.00305,123140.0,123120.0,0.31540113]
[1755145778992,0.00405,123140.0,123120.0,0.31540113]
[1755145779570,0.00405,123140.0,123130.0,0.14562127]
[1755145780872,0.00305,123140.0,123130.0,0.14562127]
[1755145781099,0.00405,123140.0,123130.0,0.27142127]
[1755145781289,0.00821,123140.0,123130.0,0.27142127]
[1755145782103,0.00821,123140.0,123130.0,0.14562127]
[1755145782321,0.00821,123140.0,123130.0,0.27138127]
[1755145784212,0.00521,123140.0,123130.0,0.27138127]
[1755145784415,0.00621,123140.0,123130.0,0.27138127]
[1755145784996,0.00521,123140.0,123130.0,0.66826127]
[1755145785388,0.00621,123140.0,123130.0,0.66826127]
[1755145786035,0.00621,123140.0,123130.0,0.56710127]
[1755145788141,0.00621,123140.0,123130.0,0.46594127]
[1755145788544,0.00621,123140.0,123130.0,0.46582127]
[1755145789119,0.00621,123140.0,123130.0,0.3202]
[1755145790430,0.00621,123140.0,123130.0,0.12564]
[1755145795049,0.00621,123140.0,123130.0,0.52252]
[1755145798457,0.00621,123140.0,123130.0,0.3202]
[1755145800043,0.00621,123140.0,123120.0,0.21375813]
[1755145800254,0.00621,123140.0,123130.0,0.12536]
[1755145800986,0.00521,123140.0,123130.0,0.12536]
[1755145802183,0.00521,123140.0,123130.0,0.12532]
[1755145802384,0.00621,123140.0,123130.0,0.12532]
[1755145804910,0.00621,123140.0,123130.0,0.32764]
[1755145805106,0.00621,123140.0,123130.0,0.5222]
[1755145805947,0.00621,123140.0,123130.0,0.42104]
[1755145806861,0.001,123140.0,123130.0,0.19456]
[1755145807068,0.001,123140.0,123130.0,0.38400113]
[1755145807271,0.001,123140.0,123130.0,0.50916113]
[1755145807495,0.001,123140.0,123130.0,0.27216438]
[1755145807706,0.001,123140.0,123130.0,0.39732438]
[1755145807896,0.001,123140.0,123130.0,0.40726638]
[1755145808337,0.001,123140.0,123130.0,0.09266525]
[1755145808528,0.001,123140.0,123130.0,0.21782525]
[1755145813709,0.001,123140.0,123130.0,0.09266525]
[1755145813910,0.001,123140.0,123130.0,0.28204184]
[1755145814117,0.0062,123140.0,123130.0,0.32435859]
[1755145814662,0.0062,123140.0,123130.0,0.19931859]
[1755145815026,0.0062,123140.0,123130.0,0.72123859]
[1755145815810,0.49716724,123140.0,123130.0,0.49503859]
[1755145816061,0.49716724,123140.0,123130.0,0.75583266]
[1755145816272,0.01480753,123140.0,123130.0,0.46525607]
[1755145816835,0.57989049,123140.0,123130.0,0.14569607]
[1755145817038,0.61582049,123140.0,123130.0,0.14569607]
[1755145817450,0.68408731,123140.0,123130.0,0.27073607]
[1755145817625,0.68408731,123140.0,123130.0,0.12504]
[1755145818005,0.2017276,123140.0,123120.0,0.14569607]
[1755145818129,0.61309499,123140.0,123130.0,0.12504]
[1755145818324,0.13173528,123140.0,123130.0,0.12504]
[1755145818795,0.13579528,123140.0,123130.0,0.12504]
[1755145822607,0.09986528,123140.0,123130.0,0.12504]
[1755145825050,0.09986528,123140.0,123130.0,0.52192]
[1755145825253,0.08992325,123140.0,123130.0,0.52192]
[1755145825597,0.09986528,123140.0,123130.0,0.42076]
[1755145829560,0.09986528,123140.0,123130.0,0.3196]
[1755145829903,0.0072,123140.0,123130.0,0.12557]
[1755145830102,0.01714203,123140.0,123130.0,0.00073]
[1755145830390,0.01714203,123140.0,123130.0,0.12557]
[1755145832701,0.01714203,123140.0,123120.0,0.14569607]
[1755145832860,0.09680528,123140.0,123130.0,0.1248]
[1755145833068,0.57916499,123140.0,123120.0,0.14569607]
[1755145833292,0.57916499,123140.0,123130.0,0.12476]
[1755145833524,0.63708149,123140.0,123130.0,0.12476]
[1755145833735,0.15472178,123140.0,123130.0,0.12476]
[1755145834070,0.15778178,123140.0,123130.0,0.12476]
[1755145834269,0.09986528,123140.0,123130.0,0.12476]
[1755145834681,0.09886528,123140.0,123130.0,0.12476]
[1755145834988,0.09886528,123140.0,123130.0,0.42048]
[1755145835975,0.09986528,123140.0,123130.0,0.42048]
[1755145836670,0.09986528,123140.0,123130.0,0.19456]
[1755145836873,0.09986528,123140.0,123110.0,0.10182857]
[1755145837079,0.00406,123140.0,123110.0,0.10441857]
[1755145837283,0.001,123140.0,123130.0,0.00212]
[1755145837691,0.00597,123140.0,123130.0,0.00212]
[1755145837896,0.00497,123140.0,123130.0,0.12688]
[1755145839458,0.00497,123140.0,123130.0,0.12476]
[1755145839668,0.00597,123140.0,123130.0,0.12476]
[1755145840085,0.00697,123140.0,123130.0,0.12476]
[1755145842102,0.00697,123140.0,123090.0,0.00259]
[1755145842305,0.00697,123140.0,123100.0,0.20748325]
[1755145842529,0.00697,123140.0,123110.0,0.12735]
[1755145842726,0.00697,123140.0,123130.0,0.00212]
[1755145842925,0.00697,123140.0,123130.0,0.12688]
[1755145843134,0.00394,123140.0,123130.0,0.12688]
[1755145843336,0.00294,123140.0,123130.0,0.12688]
[1755145843849,0.00497,123140.0,123130.0,0.12688]
[1755145845215,0.00597,123140.0,123130.0,0.5238]
[1755145845354,0.00697,123140.0,123130.0,0.5238]
[1755145845760,0.00597,123140.0,123130.0,0.5238]
[1755145846081,0.00697,123140.0,123130.0,0.52168]
[1755145846958,0.00697,123140.0,123130.0,0.42052]
[1755145847101,0.00697,123140.0,123130.0,0.1946]
[1755145847469,0.00697,123140.0,123130.0,0.46507398]
[1755145847673,0.00697,123140.0,123130.0,0.49831373]
[1755145848503,0.00697,123140.0,123130.0,0.30371373]
[1755145849897,0.00697,123140.0,123130.0,0.15799975]
[1755145850090,0.57205296,123140.0,123120.0,0.14571398]
[1755145850300,0.56802296,123130.0,123120.0,0.14571398]
[1755145850516,0.08769325,123130.0,123120.0,0.27047398]
[1755145851217,0.57005296,123130.0,123120.0,0.14571398]
[1755145851519,0.57005296,123130.0,123120.0,0.12476]
[1755145852347,0.57005296,123130.0,123110.0,0.14571398]
[1755145852542,0.48235971,123120.0,123110.0,0.14571398]
[1755145852749,0.57005296,123120.0,123110.0,0.27047398]
[1755145853186,0.57005296,123120.0,123110.0,0.12476]
[1755145855066,0.57005296,123120.0,123110.0,0.52168]
[1755145855579,0.57105296,123120.0,123110.0,0.52168]
[1755145855716,0.59081518,123120.0,123110.0,0.52168]
[1755145856091,0.59081518,123120.0,123110.0,0.29576]
[1755145856275,0.59081518,123120.0,123110.0,0.42052]
[1755145856621,0.61514318,123120.0,123110.0,0.42052]
[1755145857894,0.59081518,123120.0,123110.0,0.29576]
[1755145858092,0.59081518,123120.0,123110.0,0.42052]
[1755145858305,0.59281518,123120.0,123110.0,0.42052]
[1755145858732,0.59481518,123120.0,123100.0,0.03292055]
[1755145858876,0.56508296,123110.0,123090.0,0.14571398]
[1755145859082,0.62427048,123110.0,123090.0,0.14571398]
[1755145859304,0.00203,123100.0,123090.0,0.14571398]
[1755145859520,0.08475325,123100.0,123090.0,0.27259398]
[1755145859725,0.08272325,123100.0,123090.0,0.27259398]
[1755145860288,0.08272325,123100.0,123090.0,0.30634783]
[1755145860841,0.08566325,123100.0,123090.0,0.30634783]
[1755145861707,0.08769325,123100.0,123070.0,0.26913371]
[1755145862829,0.08769325,123100.0,123070.0,0.07980044]
[1755145863039,0.08769325,123100.0,123080.0,0.12476]
[1755145864100,0.14469855,123100.0,123080.0,0.12476]
[1755145864310,0.00294,123090.0,123080.0,0.12476]
[1755145864523,0.48732971,123090.0,123070.0,0.0597435]
[1755145864734,0.00294,123080.0,123070.0,0.0597435]
[1755145864945,0.00497,123080.0,123070.0,0.1845035]
[1755145865164,0.00497,123080.0,123070.0,0.4803035]
[1755145865582,0.57005296,123080.0,123070.0,0.0597435]
[1755145865820,0.5903191,123080.0,123070.0,0.1825035]
[1755145866007,0.10795939,123080.0,123070.0,0.1825035]
[1755145866209,0.10695939,123080.0,123070.0,0.1825035]
[1755145866622,0.5893191,123080.0,123070.0,0.1825035]
[1755145866830,0.56905296,123080.0,123070.0,0.149088]
[1755145867624,0.56905296,123080.0,123070.0,0.12476]
[1755145867818,0.56905296,123080.0,123050.0,0.0004]
[1755145868044,0.08272325,123070.0,123050.0,0.0004]
[1755145868269,0.08780325,123070.0,123060.0,0.12516]
[1755145868837,0.57016296,123070.0,123060.0,0.12516]
[1755145869041,0.56916296,123070.0,123060.0,0.12516]
[1755145869242,0.56916296,123070.0,123060.0,0.15760823]
[1755145869492,0.6325277,123070.0,123060.0,0.15760823]
[1755145869665,0.15016799,123070.0,123060.0,0.15760823]
[1755145869901,0.08480325,123070.0,123060.0,0.15760823]
[1755145870082,0.08780325,123070.0,123060.0,0.03384823]
[1755145870308,0.57016296,123070.0,123060.0,0.15860823]
[1755145870530,0.57016296,123070.0,123060.0,0.03384823]
[1755145870960,0.57016296,123070.0,123060.0,0.15860823]
[1755145871161,0.60922033,123070.0,123060.0,0.15860823]
[1755145871806,0.12686062,123070.0,123060.0,0.15860823]
[1755145872015,0.08780325,123070.0,123060.0,0.15860823]
[1755145872212,0.08780325,123070.0,123060.0,0.15060823]
[1755145874969,0.08780325,123070.0,123060.0,0.35308823]
[1755145875131,0.08780325,123070.0,123060.0,0.54776823]
[1755145875333,0.17028768,123070.0,123060.0,0.54776823]
[1755145876507,0.65264739,123070.0,123060.0,0.32176823]
[1755145876699,0.65264739,123070.0,123060.0,0.44652823]
[1755145877418,0.91464739,123070.0,123060.0,0.02584823]
[1755145877737,0.91464739,123070.0,123060.0,0.34528823]
[1755145877927,0.91464739,123070.0,123060.0,0.15060823]
[1755145878054,0.43228768,123070.0,123060.0,0.15060823]
[1755145878500,0.43228768,123070.0,123060.0,0.02584823]
[1755145878698,0.43228768,123070.0,123060.0,0.15060823]
[1755145878958,0.34980325,123070.0,123060.0,0.15060823]
[1755145880044,0.34472325,123070.0,123060.0,0.02584823]
[1755145880317,0.265,123070.0,123060.0,0.02584823]
[1755145880510,0.265,123070.0,123060.0,0.15060823]
[1755145880810,0.26264352,123070.0,123060.0,0.02584823]
[1755145881049,0.26264352,123070.0,123060.0,0.15060823]
[1755145881216,0.00064352,123070.0,123060.0,0.15060823]
[1755145882415,0.00304,123090.0,123060.0,0.15060823]
[1755145882616,0.08576325,123090.0,123060.0,0.14960823]
[1755145883014,0.08576325,123090.0,123060.0,0.15060823]
[1755145883405,0.08576325,123090.0,123060.0,0.14960823]
[1755145883598,0.08576325,123090.0,123060.0,0.02484823]
[1755145883795,1.46581837,123110.0,123060.0,0.001]
[1755145884001,0.08272325,123100.0,123070.0,0.12476]
[1755145884267,1.45074,123110.0,123060.0,0.08372325]
[1755145884468,1.53346325,123110.0,123060.0,0.08372325]
[1755145884897,0.08272325,123110.0,123070.0,0.12476]
[1755145885099,0.08272325,123110.0,123100.0,0.29592]
[1755145885361,0.08272325,123110.0,123100.0,0.42068]
[1755145885591,0.06988771,123120.0,123100.0,0.31944]
[1755145885806,0.15261096,123120.0,123100.0,0.31944]
[1755145886042,0.15261096,123120.0,123100.0,0.12476]
[1755145886255,0.002,123110.0,123100.0,0.12476]
[1755145887125,0.15361096,123120.0,123100.0,0.12476]
[1755145887557,0.002,123110.0,123100.0,0.12476]
[1755145887825,0.03702494,123100.0,123070.0,0.14527794]
[1755145888059,0.03702494,123100.0,123070.0,0.22800119]
[1755145888874,0.03702494,123100.0,123080.0,0.12476]
[1755145889238,0.03702494,123100.0,123090.0,0.12476]
[1755145890514,0.03702494,123100.0,123070.0,0.22800119]
[1755145890729,0.03702494,123100.0,123080.0,0.20748325]
[1755145892566,0.03702494,123100.0,123090.0,0.12476]
[1755145892722,0.03702494,123100.0,123080.0,0.08372325]
[1755145892930,0.03702494,123100.0,123090.0,0.12476]
[1755145894936,0.03906494,123100.0,123080.0,0.08272325]
[1755145895152,0.03906494,123100.0,123090.0,0.42056]
[1755145895623,0.03906494,123100.0,123090.0,0.31936]
[1755145895852,0.04210494,123100.0,123090.0,0.31936]
[1755145896076,0.04210494,123100.0,123090.0,0.12472]
[1755145900599,0.04210494,123100.0,123070.0,0.22800119]
[1755145900817,0.03906494,123100.0,123080.0,0.12472]
[1755145900941,0.00305,123090.0,123080.0,0.12472]
[1755145901808,0.00305,123090.0,123070.0,0.23000119]
[1755145902020,0.00305,123090.0,123080.0,0.12572]
[1755145902246,0.00522,123090.0,123080.0,0.12472]
[1755145902458,0.00522,123090.0,123070.0,0.002]
[1755145902676,0.00205,123080.0,123070.0,0.002]
[1755145902919,0.00422,123080.0,123070.0,0.12672]
[1755145903355,0.00422,123080.0,123070.0,0.12472]
[1755145903549,0.00322,123080.0,123070.0,0.12472]
[1755145903761,0.00105,123080.0,123070.0,0.12613]
[1755145904447,0.03561494,123070.0,123060.0,0.17825608]
[1755145904679,0.03361494,123070.0,123060.0,0.26097933]
[1755145905109,0.03261494,123070.0,123060.0,0.65801933]
[1755145905468,0.03261494,123070.0,123060.0,0.51274139]
[1755145905682,0.03261494,123070.0,123060.0,0.51474139]
[1755145905889,0.03261494,123070.0,123060.0,0.63946139]
[1755145906878,0.03261494,123070.0,123050.0,0.12033033]
[1755145907026,0.03261494,123070.0,123050.0,0.33634923]
[1755145907456,0.03261494,123070.0,123060.0,0.001]
[1755145907858,0.03261494,123070.0,123050.0,0.23634923]
[1755145908044,0.03261494,123070.0,123060.0,0.12472]
[1755145908250,0.03461494,123070.0,123060.0,0.12472]
[1755145908915,0.03461494,123070.0,123060.0,0.12572]
[1755145909096,0.03361494,123070.0,123060.0,0.12572]
[1755145911281,0.03361494,123070.0,123060.0,0.12672]
[1755145911735,0.03361494,123070.0,123060.0,0.002]
[1755145911942,0.03361494,123070.0,123060.0,0.12672]
[1755145913918,0.03361494,123070.0,123060.0,0.12668]
[1755145915055,0.03361494,123070.0,123060.0,0.52372]
[1755145915215,0.03666494,123070.0,123060.0,0.52372]
[1755145916637,0.03666494,123070.0,123060.0,0.12668]
[1755145917209,0.03666494,123070.0,123060.0,0.002]
[1755145917447,0.03666494,123070.0,123060.0,0.12668]
[1755145917644,0.03361494,123070.0,123060.0,0.12668]
[1755145919557,0.001,123070.0,123060.0,0.12668]
[1755145920317,0.00405,123070.0,123060.0,0.12668]
[1755145921548,0.03061494,123060.0,123050.0,0.1160189]
[1755145921754,0.03061494,123060.0,123050.0,0.2160189]
[1755145922801,0.03161494,123060.0,123050.0,0.3426989]
[1755145923189,0.03161494,123060.0,123050.0,0.57539404]
[1755145923521,0.03161494,123060.0,123050.0,0.45071404]
[1755145923730,0.03161494,123060.0,123050.0,0.57539404]
[1755145924841,0.03261494,123060.0,123050.0,0.57639404]
[1755145925057,0.03261494,123060.0,123050.0,0.97343404]
[1755145927589,0.03261494,123060.0,123050.0,0.57639404]
[1755145929666,0.03797494,123060.0,123050.0,0.45171404]
[1755145929900,0.03797494,123060.0,123050.0,0.57639404]
[1755145932311,0.03583494,123060.0,123050.0,0.47604204]
[1755145932535,0.03583494,123060.0,123050.0,0.60068204]
[1755145933185,0.03261494,123060.0,123050.0,0.60068204]
[1755145934406,0.01624755,123060.0,123050.0,0.60068204]
[1755145934978,0.01624755,123060.0,123050.0,0.99772204]
[1755145935833,0.02160755,123060.0,123050.0,0.77188204]
[1755145936068,0.02160755,123060.0,123050.0,0.81379879]
[1755145936225,0.02160755,123060.0,123050.0,0.71259879]
[1755145936616,0.00736,123060.0,123050.0,0.90225121]
[1755145937071,0.00736,123060.0,123050.0,0.66955607]
[1755145937754,0.00736,123060.0,123050.0,0.65530852]
[1755145938139,0.00736,123060.0,123050.0,0.33602852]
[1755145938363,0.00736,123060.0,123050.0,0.33634052]
[1755145939050,0.00736,123060.0,123050.0,0.1466881]
[1755145939254,0.00636,123060.0,123050.0,0.1446881]
[1755145939653,0.00536,123060.0,123050.0,0.1436881]
[1755145939960,0.00536,123060.0,123050.0,0.1446881]
[1755145940158,0.00536,123060.0,123050.0,0.1436881]
[1755145940359,0.00536,123060.0,123050.0,0.1680211]
[1755145940600,0.00736,123060.0,123050.0,0.1690211]
[1755145940801,0.00836,123060.0,123050.0,0.31679126]
[1755145940983,0.00836,123060.0,123050.0,0.19215126]
[1755145941139,0.00836,123060.0,123050.0,0.16581826]
[1755145941362,0.00736,123060.0,123050.0,0.16581826]
[1755145941532,0.00736,123060.0,123050.0,0.29045826]
[1755145941747,0.00736,123060.0,123050.0,0.29145826]
[1755145942560,0.00736,123060.0,123050.0,0.16681826]
[1755145942800,0.00736,123060.0,123050.0,0.29145826]
[1755145943931,0.00736,123060.0,123050.0,0.1456881]
[1755145944692,0.00736,123060.0,123050.0,0.29145826]
[1755145945131,0.00736,123060.0,123050.0,0.68853826]
[1755145946342,0.00736,123060.0,123050.0,0.58733826]
[1755145946724,0.00736,123060.0,123050.0,0.46269826]
[1755145946881,0.00736,123060.0,123050.0,0.58733826]
[1755145947514,0.00736,123060.0,123050.0,0.29145826]
[1755145949342,0.09008325,123060.0,123050.0,0.16681826]
[1755145949488,0.09909158,123060.0,123050.0,0.16681826]
[1755145949704,0.09909158,123060.0,123050.0,0.29145826]
[1755145950085,0.09909158,123060.0,123050.0,0.1456881]
[1755145950310,0.09709158,123060.0,123050.0,0.0200481]
[1755145950527,0.09709158,123060.0,123050.0,0.1446881]
[1755145950750,0.58345129,123060.0,123050.0,0.0200481]
[1755145951193,0.58545129,123060.0,123050.0,0.1456881]
[1755145951615,2.03315129,123060.0,123050.0,0.1457281]
[1755145951813,2.03315129,123060.0,123050.0,0.0210481]
[1755145952046,2.03315129,123060.0,123050.0,0.1457281]
[1755145952660,1.55079158,123060.0,123050.0,0.1456881]
[1755145952896,2.03315129,123060.0,123050.0,0.1456881]
[1755145953120,2.05749029,123060.0,123050.0,0.1456881]
[1755145953686,2.05749029,123060.0,123050.0,0.0210481]
[1755145953889,2.05749029,123060.0,123050.0,0.1457281]
[1755145954971,1.57513058,123060.0,123050.0,0.2469681]
[1755145955102,2.05749029,123060.0,123050.0,0.5428881]
[1755145956089,2.05749029,123060.0,123050.0,0.4416481]
[1755145956313,2.31949029,123060.0,123050.0,0.4416481]
[1755145956488,1.83713058,123060.0,123050.0,0.3404081]
[1755145956720,2.31949029,123060.0,123050.0,0.3404081]
[1755145957361,1.82812225,123060.0,123050.0,0.1457281]
[1755145957581,1.80378325,123060.0,123050.0,0.1457281]
[1755145957755,0.35608325,123060.0,123050.0,0.1457281]
[1755145959758,0.35608325,123060.0,123050.0,0.0210481]
[1755145959932,0.43856768,123060.0,123050.0,0.1456881]
[1755145960185,0.43856768,123060.0,123050.0,0.12464]
[1755145961995,0.92092739,123060.0,123050.0,0.12464]
[1755145962206,0.65892739,123060.0,123050.0,0.12464]
[1755145962475,0.65892739,123060.0,123050.0,0.15697488]
[1755145962685,0.17656768,123060.0,123050.0,0.15697488]
[1755145962888,0.17656768,123060.0,123050.0,0.03233488]
[1755145963212,0.17656768,123060.0,123050.0,0.12468]
[1755145964596,0.17656768,123060.0,123020.0,0.024337]
[1755145964797,0.08272325,123050.0,123020.0,0.024337]
[1755145964963,0.10301802,123050.0,123040.0,0.29596]
[1755145965165,0.10517802,123050.0,123040.0,0.29596]
[1755145966209,0.10517802,123050.0,123040.0,0.32950101]
[1755145967019,0.10717802,123050.0,123040.0,0.33050101]
[1755145967349,0.10717802,123050.0,123040.0,0.22926101]
[1755145967706,0.10717802,123050.0,123040.0,0.03454101]
[1755145967909,0.10717802,123050.0,123040.0,0.15922101]
[1755145968340,0.10817802,123050.0,123040.0,0.15922101]
[1755145971882,0.10717802,123050.0,123040.0,0.15922101]
[1755145972221,0.11017802,123050.0,123040.0,0.16022101]
[1755145972424,0.11017802,123050.0,123040.0,0.03554101]
[1755145972638,0.11017802,123050.0,123040.0,0.16022101]
[1755145972840,0.10817802,123050.0,123040.0,0.15922101]
[1755145973231,0.11217802,123050.0,123040.0,0.16022101]
[1755145974995,0.11217802,123050.0,123040.0,0.26146101]
[1755145975199,0.11217802,123050.0,123040.0,0.55742101]
[1755145976563,0.11217802,123050.0,123040.0,0.45618101]
[1755145978660,0.11217802,123050.0,123040.0,0.35494101]
[1755145980350,0.11001802,123050.0,123040.0,0.35494101]
[1755145980574,0.09268325,123050.0,123040.0,0.16022101]
[1755145980766,0.08972325,123050.0,123040.0,0.03554101]
[1755145980967,0.08972325,123050.0,123040.0,0.16018101]
[1755145981101,0.08972325,123050.0,123040.0,0.03554101]
[1755145981304,0.08972325,123050.0,123040.0,0.16018101]
[1755145981511,0.12489558,123050.0,123040.0,0.16018101]
[1755145981977,0.08972325,123050.0,123040.0,0.16018101]
[1755145984958,0.007,123050.0,123040.0,0.16018101]
[1755145985160,0.007,123050.0,123040.0,0.45614101]
[1755145985352,0.007,123050.0,123040.0,0.6016549]
[1755145986555,0.007,123050.0,123040.0,0.5004149]
[1755145987800,0.01025,123050.0,123040.0,0.3056949]
[1755145988041,0.01222,123050.0,123040.0,0.3056949]
[1755145990007,0.01025,123050.0,123040.0,0.3056949]
[1755145990203,0.007,123050.0,123040.0,0.1810549]
[1755145990407,0.007,123050.0,123040.0,0.3056949]
[1755145992228,0.007,123050.0,123040.0,0.1810549]
[1755145992382,0.01025,123050.0,123040.0,0.3056949]
[1755145993966,0.01222,123050.0,123040.0,0.3056949]
[1755145994187,0.01138646,123050.0,123040.0,0.1810549]
[1755145994349,0.14348433,123050.0,123040.0,0.3056949]
[1755145994534,0.09410971,123050.0,123040.0,0.3056949]
[1755145994938,0.09410971,123050.0,123040.0,0.7028949]
[1755145997131,0.09410971,123050.0,123040.0,0.3757749]
[1755145997307,0.09410971,123050.0,123040.0,0.1810549]
[1755145997703,0.09410971,123050.0,123040.0,0.3056949]
[1755145997895,0.11732979,123050.0,123040.0,0.3056949]
[1755146000384,0.11732979,123050.0,123040.0,0.16018101]
[1755146000586,0.5996895,123050.0,123040.0,0.03554101]
[1755146000791,0.11732979,123050.0,123040.0,0.16018101]
[1755146001004,0.6240285,123050.0,123040.0,0.03554101]
[1755146001189,0.6240285,123050.0,123040.0,0.16018101]
[1755146001758,0.6240285,123050.0,123040.0,0.16026101]
[1755146003511,0.14166879,123050.0,123040.0,0.16026101]
[1755146003716,0.14166879,123050.0,123040.0,0.16050101]
[1755146004061,0.13969879,123050.0,123040.0,0.16050101]
[1755146004667,0.14166879,123050.0,123040.0,0.16050101]
[1755146005039,0.14166879,123050.0,123040.0,0.55770101]
[1755146005285,0.6240285,123050.0,123040.0,0.33150101]
[1755146005490,0.6240285,123050.0,123040.0,0.35534101]
[1755146005687,0.14166879,123050.0,123040.0,0.35534101]
[1755146006277,0.6240285,123050.0,123040.0,0.35534101]
[1755146007406,0.6240285,123050.0,123040.0,0.16062101]
[1755146007613,0.14166879,123050.0,123040.0,0.16062101]
[1755146008004,0.14166879,123050.0,123040.0,0.03554101]
[1755146008413,0.14166879,123050.0,123040.0,0.16062101]
[1755146010109,0.6240285,123050.0,123040.0,0.16062101]
[1755146011441,0.6240285,123050.0,123040.0,0.03554101]
[1755146011766,0.6240285,123050.0,123040.0,0.16098101]
[1755146012612,0.6240285,123050.0,123040.0,0.03554101]
[1755146012874,0.6240285,123050.0,123040.0,0.16094101]
[1755146013266,0.6240285,123050.0,123040.0,0.03554101]
[1755146013521,0.6240285,123050.0,123040.0,0.16094101]
[1755146013723,2.0717285,123050.0,123040.0,0.16094101]
[1755146013927,2.0717285,123050.0,123040.0,0.1274]
[1755146015155,2.0717285,123050.0,123040.0,0.5246]
[1755146015312,2.0717285,123050.0,123040.0,0.42336]
[1755146015690,2.0717285,123050.0,123040.0,0.45572383]
[1755146016188,2.0717285,123050.0,123040.0,0.45564383]
[1755146017557,1.58936879,123050.0,123040.0,0.45564383]
[1755146017760,2.0717285,123050.0,123040.0,0.45564383]
[1755146018107,2.0717285,123050.0,123040.0,0.15968383]
[1755146018318,2.3337285,123050.0,123040.0,0.15968383]
[1755146019540,1.85136879,123050.0,123040.0,0.15968383]
[1755146019769,0.40366879,123050.0,123040.0,0.15968383]
[1755146020487,0.40366879,123050.0,123040.0,0.15964383]
[1755146020664,0.38044871,123050.0,123040.0,0.15964383]
[1755146022127,0.37522871,123050.0,123040.0,0.15964383]
[1755146022832,0.37820871,123050.0,123040.0,0.15964383]
[1755146023111,0.38022871,123050.0,123040.0,0.15964383]
[1755146025028,0.38022871,123050.0,123040.0,0.55688383]
[1755146025432,0.43433869,123050.0,123040.0,0.55688383]
[1755146025594,0.43433869,123050.0,123040.0,0.45560383]
[1755146026206,0.43433869,123050.0,123040.0,0.35436383]
[1755146027232,0.9166984,123050.0,123040.0,0.35436383]
[1755146030023,0.9166984,123050.0,123040.0,0.15952383]
[1755146035120,0.9166984,123050.0,123040.0,0.55676383]
[1755146036048,0.43433869,123050.0,123040.0,0.55676383]
[1755146036204,0.9166984,123050.0,123040.0,0.55676383]
[1755146036613,0.9166984,123050.0,123040.0,0.45552383]
[1755146037213,0.9166984,123050.0,123040.0,0.35428383]
[1755146039208,0.9166984,123050.0,123040.0,0.03436383]
[1755146039623,0.9166984,123050.0,123040.0,0.15932383]
[1755146040269,0.9166984,123050.0,123000.0,0.20830098]
[1755146040472,0.08272325,123040.0,123000.0,0.20830098]
[1755146040598,0.12883912,123040.0,123000.0,0.20830098]
[1755146040803,0.12883912,123040.0,123000.0,0.01864856]
[1755146041003,0.15318012,123040.0,123000.0,0.01864856]
[1755146041198,0.63553983,123040.0,123000.0,0.01864856]
[1755146041425,0.63553983,123040.0,123010.0,0.12492]
[1755146041641,0.63553983,123040.0,123000.0,0.02064856]
[1755146041868,0.63653983,123040.0,123010.0,0.12492]
[1755146042592,0.15418012,123040.0,123000.0,0.02264856]
[1755146042792,0.15418012,123040.0,123010.0,0.12492]
[1755146043434,0.15518012,123040.0,123010.0,0.12492]
[1755146043958,0.15318012,123040.0,123010.0,0.12492]
[1755146044381,0.15418012,123040.0,123010.0,0.12692]
[1755146044738,0.15418012,123040.0,123010.0,0.002]